fUSD/lending_fUSD_20250622
["ID","MTS","AMOUNT","RATE_DAILY","PERIOD"]
[366889490,1750552234169,-151.51,0.000227,2]
[366889491,1750552234180,-245.5,0.000227,2]
[366889492,1750552234191,-303.3,0.000227,2]
[366889493,1750552234201,-151.45,0.000227,2]
[366889494,1750552234212,-252.22,0.000227,2]
[366889495,1750552234223,-248.47,0.000227,2]
[366889496,1750552234234,-303.33,0.000227,2]
[366889497,1750552234245,-254.16,0.000227,2]
[366889498,1750552234257,-152.93,0.000227,2]
[366889499,1750552234268,-254.96,0.000227,2]
[366889500,1750552234281,-56.95670072,0.000227,2]
[366889501,1750552237984,-243.33329928,0.000227,2]
[366889502,1750552237994,-245.93,0.000227,2]
[366889503,1750552238004,-247.61,0.000227,2]
[366889504,1750552238013,-255.04401435,0.000227,2]
[366889505,1750552238024,-50.62598565,0.000227,2]
[366889506,1750552238037,-152.23,0.000227,2]
[366889507,1750552238047,-254.42,0.000227,2]
[366889508,1750552238057,-55.22401435,0.000227,2]
[366889702,1750552240192,-431.50580919,0.00022699,2]
[366889704,1750552240202,-196.97598565,0.000227,2]
[366889706,1750552240212,-301.49,0.000227,2]
[366889708,1750552240221,-500.0,0.000227,2]
[366889710,1750552240231,-250.0,0.000227,2]
[366889712,1750552240240,-286.48624308,0.000227,8]
[366889714,1750552240253,-250.11,0.000227,2]
[366889716,1750552240263,-254.01,0.000227,2]
[366889718,1750552240274,-252.94,0.000227,2]
[366889720,1750552240284,-252.63,0.000227,2]
[366889722,1750552240293,-304.91,0.000227,2]
[366889724,1750552240302,-300.28,0.00022701,2]
[366889726,1750552240312,-252.24,0.00022703,2]
[366889728,1750552240322,-253.78,0.00022703,2]
[366889730,1750552240331,-249.95,0.00022703,2]
[366889732,1750552240342,-301.59,0.00022707,2]
[366889734,1750552240351,-302.78,0.00022707,2]
[366889736,1750552240361,-248.81,0.00022745,2]
[366889738,1750552240371,-1673.0,0.00022774,2]
[366889740,1750552240381,-150.0,0.00022783,4]
[366889742,1750552240390,-1065.31252193,0.000228,7]
[366889744,1750552240400,-1100.0,0.000228,8]
[366889746,1750552240409,-150.0,0.00022871,4]
[366889748,1750552240419,-1867.0,0.00022883,2]
[366889750,1750552240428,-1000.0,0.000229,2]
[366889752,1750552240438,-230.0467247,0.000229,8]
[366889754,1750552240448,-1700.0,0.000229,8]
[366889756,1750552240458,-150.0,0.00022906,4]
[366889758,1750552240468,-431.50580919,0.0002294,2]
[366889760,1750552240479,-150.0,0.00022988,4]
[366889762,1750552240488,-230.0467247,0.00023072,8]
[366889764,1750552240498,-359.0,0.0002309,2]
[366889766,1750552240508,-150.0,0.00023091,4]
[366889768,1750552240517,-950.66339,0.0002311,2]
[366889770,1750552240527,-202.0,0.00023137,4]
[366889772,1750552240538,-150.0,0.00023152,4]
[366889774,1750552240547,-150.0,0.00023152,4]
[366889776,1750552240557,-2139.43717188,0.0002316,2]
[366889778,1750552240567,-1000.0,0.000232,2]
[366889780,1750552240577,-335.05689913,0.00023201,2]
[366889782,1750552240587,-150.0,0.00023223,4]
[366889784,1750552240596,-7962.0954746,0.0002323,2]
[366889786,1750552240605,-950.66339,0.0002323,2]
[366889788,1750552240615,-200.0,0.00023231,2]
[366889790,1750552240624,-230.0467247,0.00023245,8]
[366889792,1750552240633,-11659.45577065,0.00023268,2]
[366889794,1750552240643,-561.20185599,0.00023268,2]
[366889796,1750552240652,-2500.0,0.00023268,2]
[366889798,1750552240662,-335.05689899,0.00023269,2]
[366889800,1750552240672,-1047.66107268,0.00023271,2]
[366889803,1750552240684,-548.66066903,0.00023271,2]
[366889830,1750552240935,-10246.91699885,0.00023271,2]
[366889832,1750552240947,-646.83922407,0.00023271,2]
[366889834,1750552240957,-8551.2448,0.00023272,3]
[366889836,1750552240966,-830.248,0.00023272,2]
[366889838,1750552240975,-290.83576345,0.00023272,2]
[366889840,1750552240984,-465.02396269,0.00023272,2]
[366889842,1750552240994,-950.66338,0.0002328,2]
[366889844,1750552241003,-950.66339,0.0002328,2]
[366889846,1750552241012,-151.41,0.0002328,2]
[366889848,1750552241021,-252.25,0.0002328,2]
[366889850,1750552241030,-303.54,0.0002328,2]
[366889852,1750552241042,-246.76,0.0002328,2]
[366889854,1750552241051,-251.05,0.0002328,2]
[366889856,1750552241061,-151.83,0.0002328,2]
[366889858,1750552241070,-150.0,0.00023284,2]
[366889860,1750552241079,-150.0,0.00023293,2]
[366889862,1750552241089,-150.0,0.00023294,2]
[366889864,1750552241099,-5146.31391892,0.000233,2]
[366890048,1750552242918,-2147.35117972,0.000233,2]
[366890056,1750552242980,-2278.41877591,0.000233,2]
[366890060,1750552243000,-1546.99932527,0.000233,2]
[366890062,1750552243012,-443.44008908,0.000233,2]
[366890064,1750552243022,-1000.0,0.00023301,2]
[366890066,1750552243032,-150.0,0.00023307,2]
[366890068,1750552243043,-151.17377438,0.00023308,2]
[366890070,1750552243053,-150.0,0.00023309,2]
[366890072,1750552243062,-150.0,0.00023311,2]
[366890074,1750552243071,-150.0,0.00023314,2]
[366890076,1750552243081,-1000.0,0.00023318,2]
[366890078,1750552243090,-150.0,0.00023322,2]
[366890080,1750552243100,-150.0,0.00023337,2]
[366890082,1750552243109,-335.05689899,0.00023338,2]
[366890084,1750552243118,-1000.0,0.00023339,2]
[366890086,1750552243127,-150.0,0.00023349,2]
[366890088,1750552243136,-150.0,0.0002335,2]
[366890089,1750552243145,-1000.0,0.00023356,2]
[366890090,1750552243154,-245.65,0.00023358,2]
[366890091,1750552243164,-950.66339,0.0002336,2]
[366890092,1750552243173,-150.44,0.00023361,2]
[366890093,1750552243182,-150.44,0.00023361,2]
[366890094,1750552243190,-245.65,0.00023361,2]
[366890095,1750552243199,-245.65,0.00023361,2]
[366890096,1750552243208,-245.65,0.00023361,2]
[366890098,1750552243218,-245.65,0.00023361,2]
[366890100,1750552243227,-3894.37,0.00023361,2]
[366890102,1750552243237,-3894.37,0.00023361,2]
[366890104,1750552243246,-150.44,0.00023362,2]
[366890106,1750552243257,-150.0,0.00023367,2]
[366890108,1750552243269,-19548.7578422,0.00023368,2]
[366890111,1750552243281,-678.42001266,0.00023368,2]
[366890113,1750552243298,-2093.62099511,0.00023368,2]
[366890116,1750552243310,-12148.77292668,0.00023368,2]
[366890118,1750552243321,-446.59272568,0.00023368,2]
[366890120,1750552243332,-471.2851868,0.00023368,2]
[366890208,1750552244245,-760.34321087,0.00023368,2]
[366890210,1750552244256,-386.30678913,0.00023368,2]
[366890212,1750552244270,-613.69321087,0.00023368,2]
[366890214,1750552244280,-3565.36442512,0.00023368,2]
[366890327,1750552246120,-6343.69557488,0.00023368,2]
[366890328,1750552246130,-205.21004688,0.00023369,2]
[366890329,1750552246139,-300.0,0.0002337,2]
[366890330,1750552246149,-300.0,0.00023371,2]
[366890331,1750552246158,-300.0,0.00023371,2]
[366890332,1750552246168,-300.0,0.00023371,2]
[366890333,1750552246177,-1439.94585985,0.00023371,3]
[366890334,1750552246187,-13683.99851832,0.00023371,3]
[366890335,1750552246199,-457.65434262,0.00023371,3]
[366890336,1750552246230,-848.82357819,0.00023371,3]
[366890337,1750552246250,-60558.31009497,0.00023371,3]
[366891176,1750552894212,150.0,0.00020002,2]
[366891179,1750552987390,221.59144173,0.000227,120]
[366891180,1750553020964,250.0,0.00015,2]
[366891184,1750553119301,156.11,0.00013699,2]
[366891825,1750553432438,-203.0,0.00021612,2]
[366891826,1750553432448,-174.5879686,0.0002167,2]
[366891827,1750553432518,-32.3720314,0.0002167,2]
[366891828,1750553432527,-354.19,0.00021845,2]
[366891829,1750553432537,-160.01,0.00021873,2]
[366891830,1750553432546,-166.65,0.00021912,2]
[366891831,1750553432556,-2751.0,0.00021962,2]
[366891832,1750553432565,-1200.0,0.0002214,2]
[366891833,1750553432577,-1957.856,0.00022141,2]
[366891834,1750553432587,-207.4,0.00022141,2]
[366891835,1750553432598,-300.0,0.00022166,2]
[366891836,1750553432608,-300.0,0.00022166,2]
[366891837,1750553432619,-300.0,0.00022166,2]
[366891838,1750553432628,-150.0,0.00022167,2]
[366891840,1750553432638,-150.0,0.00022167,2]
[366891841,1750553432648,-150.0,0.00022167,2]
[366891842,1750553432659,-150.0,0.00022167,2]
[366891843,1750553432669,-150.0,0.00022167,2]
[366891844,1750553432678,-150.0,0.00022167,2]
[366891845,1750553432688,-150.0,0.00022167,2]
[366891846,1750553432698,-2030.296672,0.00022196,2]
[366891847,1750553432707,-200.0,0.00022233,2]
[366891848,1750553432717,-151.0,0.00022233,2]
[366891849,1750553432727,-151.0,0.00022233,2]
[366891850,1750553432737,-300.0,0.00022244,2]
[366891851,1750553432747,-304.24,0.00022244,2]
[366891852,1750553432756,-249.41,0.00022244,2]
[366891853,1750553432766,-248.06,0.00022244,2]
[366891854,1750553432776,-305.97,0.00022244,2]
[366891855,1750553432786,-246.3,0.00022244,2]
[366891857,1750553432796,-253.34,0.00022244,2]
[366891859,1750553432805,-252.61,0.00022244,2]
[366891861,1750553432814,-300.56,0.00022244,2]
[366891863,1750553432824,-250.0,0.00022244,2]
[366891865,1750553432834,-250.84,0.00022244,2]
[366891867,1750553432843,-301.84,0.00022244,2]
[366891869,1750553432854,-250.91,0.00022245,2]
[366891871,1750553432864,-305.5,0.00022245,2]
[366891873,1750553432873,-251.64,0.00022245,2]
[366891875,1750553432883,-252.13,0.00022245,2]
[366891877,1750553432893,-300.35,0.00022245,2]
[366891879,1750553432902,-246.76,0.00022245,2]
[366891881,1750553432911,-249.3,0.00022245,2]
[366891882,1750553432921,-305.82,0.00022245,2]
[366891884,1750553432931,-252.0,0.00022245,2]
[366891886,1750553432940,-251.58,0.00022245,2]
[366891888,1750553432949,-248.13,0.00022246,2]
[366891890,1750553432959,-300.66,0.00022246,2]
[366891892,1750553432968,-252.01,0.00022246,2]
[366891894,1750553432978,-247.35,0.00022246,2]
[366891896,1750553432987,-304.79,0.00022246,2]
[366891898,1750553432996,-247.89,0.00022246,2]
[366891900,1750553433005,-253.21,0.00022246,2]
[366891902,1750553433015,-300.92,0.00022246,2]
[366891904,1750553433024,-246.96,0.00022246,2]
[366891906,1750553433033,-302.03,0.00022246,2]
[366891908,1750553433043,-249.79,0.00022246,2]
[366891910,1750553433053,-254.76,0.00022247,2]
[366891912,1750553433062,-302.31,0.00022247,2]
[366891914,1750553433072,-249.69,0.00022247,2]
[366891916,1750553433082,-247.73,0.00022247,2]
[366891918,1750553433091,-304.93,0.00022247,2]
[366891920,1750553433102,-253.09,0.00022247,2]
[366891921,1750553433111,-251.35,0.00022247,2]
[366891922,1750553433121,-300.56,0.00022247,2]
[366891923,1750553433131,-245.43,0.00022247,2]
[366891924,1750553433419,-252.58,0.00022247,2]
[366891925,1750553433444,-305.44,0.00022247,2]
[366891926,1750553433455,-252.69,0.00022247,2]
[366891927,1750553433466,-247.37,0.00022247,2]
[366891928,1750553433476,-304.49,0.00022247,2]
[366891929,1750553433486,-246.19,0.00022247,2]
[366891930,1750553433496,-254.23,0.00022247,2]
[366891931,1750553433506,-304.61,0.00022247,2]
[366891932,1750553433515,-245.82,0.00022247,2]
[366891933,1750553433525,-666.0,0.00022247,2]
[366891934,1750553433535,-1552.14249708,0.00022251,2]
[366891935,1750553433607,-553.27515178,0.00022251,2]
[366891936,1750553433617,-249.04042609,0.00022306,2]
[366891943,1750553438129,-654.96873507,0.00022306,2]
[366891944,1750553438139,-252.45,0.0002232,2]
[366891945,1750553438148,-300.46,0.0002232,2]
[366891946,1750553438158,-249.57,0.0002232,2]
[366891947,1750553438167,-253.46,0.0002232,2]
[366891948,1750553438177,-248.4,0.0002232,2]
[366891949,1750553438186,-246.66,0.0002232,2]
[366891950,1750553438196,-134.81086568,0.0002232,2]
[366891951,1750553438207,-114.79913432,0.0002232,2]
[366891952,1750553438217,-252.48,0.0002232,2]
[366891953,1750553438226,-245.81,0.0002232,2]
[366891954,1750553438237,-246.11,0.0002232,2]
[366891955,1750553438247,-140.72277618,0.0002232,2]
[366891956,1750553438315,-164.87722382,0.0002232,2]
[366891957,1750553438325,-304.19,0.0002232,2]
[366891958,1750553438334,-302.92,0.0002232,2]
[366891959,1750553438344,-301.64,0.0002232,2]
[366891960,1750553438355,-494.29593791,0.0002232,2]
[366891965,1750553438537,-251.55665952,0.0002232,2]
[366892148,1750553440279,-254.14740257,0.0002232,2]
[366892150,1750553440289,-275.83,0.00022394,2]
[366892152,1750553440298,-249.95,0.00022394,2]
[366892155,1750553440308,-254.49,0.00022394,2]
[366892157,1750553440318,-26.87912265,0.00022394,2]
[366892159,1750553440329,-277.60087735,0.00022394,2]
[366892161,1750553440338,-247.88,0.00022394,2]
[366892163,1750553440348,-250.14,0.00022394,2]
[366892165,1750553440360,-301.21,0.00022395,2]
[366892190,1750553440596,-247.89,0.00022396,2]
[366892194,1750553440629,-249.02,0.00022396,2]
[366892196,1750553440639,-302.06,0.00022398,2]
[366892197,1750553440649,-250.74,0.00022419,2]
[366892198,1750553440660,-250.92,0.00022419,2]
[366892199,1750553440670,-246.76,0.00022419,2]
[366892200,1750553440679,-1476.0,0.0002243,2]
[366892201,1750553440689,-300.47,0.00022443,2]
[366892202,1750553440698,-942.01259743,0.00022508,2]
[366892203,1750553440720,-688.66507901,0.00022508,2]
[366892204,1750553440730,-361.32232356,0.00022508,2]
[366892206,1750553440740,-155.97767644,0.00022521,2]
[366892214,1750553440810,-10.99232356,0.00022521,2]
[366892216,1750553440819,-680.0,0.00022541,2]
[366892218,1750553440829,-490.48,0.00022562,2]
[366892220,1750553440838,-150.99,0.00022562,2]
[366892222,1750553440848,-395.37,0.00022562,2]
[366892224,1750553440858,-150.99,0.00022562,2]
[366892226,1750553440868,-8255.83,0.00022562,2]
[366892228,1750553440877,-9999.99,0.00022562,2]
[366892230,1750553440887,-299.99,0.00022562,7]
[366892232,1750553440897,-999.99,0.00022562,2]
[366892234,1750553440907,-11813.4,0.00022562,2]
[366892236,1750553440916,-499.99,0.00022562,2]
[366892238,1750553440926,-594.78,0.00022562,2]
[366892241,1750553440936,-619.0,0.0002262,2]
[366892243,1750553440944,-734.0,0.00022653,2]
[366892245,1750553440954,-150.0,0.0002266,4]
[366892247,1750553440963,-150.0,0.0002266,4]
[366892249,1750553440973,-12299.22221865,0.00022669,2]
[366892251,1750553440982,-254.39,0.000227,2]
[366892253,1750553440992,-248.11,0.000227,2]
[366892255,1750553441001,-600.0,0.000227,8]
[366892257,1750553441011,-530.0,0.00022732,2]
[366892259,1750553441021,-150.0,0.00022783,4]
[366892261,1750553441031,-1300.0,0.000228,8]
[366892263,1750553441040,-247.77,0.00022812,2]
[366892265,1750553441050,-252.77,0.00022812,2]
[366892267,1750553441064,-500.0,0.00022877,2]
[366892269,1750553441074,-218.44817363,0.000229,8]
[366892271,1750553441083,-1900.0,0.000229,8]
[366892273,1750553441093,-1662.0,0.00022913,2]
[366892275,1750553441103,-303.96,0.00022924,2]
[366892277,1750553441114,-1317.0,0.00022956,2]
[366892279,1750553441124,-1833.78,0.00022995,2]
[366892281,1750553441133,-43706.75728416,0.00023,2]
[366892510,1750553443251,-7071.8728575,0.00023,2]
[366892514,1750553443261,-150.0,0.00023005,2]
[366892518,1750553443271,-355.03,0.00023005,2]
[366892521,1750553443280,-150.0,0.00023005,2]
[366892523,1750553443289,-342.31,0.00023005,2]
[366892525,1750553443299,-377.08,0.00023005,2]
[366892527,1750553443309,-202.50026303,0.00023005,2]
[366893023,1750553498090,300.0,0.000221,8]
[366893024,1750553539723,7421.10506213,0.00020002,2]
[366893025,1750553539746,2578.89493787,0.00020002,2]
[366893026,1750553551006,7421.10506213,0.00020002,2]
[366893027,1750553551027,10000.0,0.00020002,2]
[366893028,1750553551047,2578.89493787,0.00020002,2]
[366893029,1750553561585,7421.10506213,0.00020002,2]
[366893030,1750553561610,10000.0,0.00020002,2]
[366893031,1750553561634,2578.89493787,0.00020002,2]
[366893033,1750553617650,3500.0,0.00020002,2]
[366893036,1750554206078,155.94,0.00013699,2]
[366893038,1750554318495,1000.0,0.0002,2]
[366893467,1750554463543,335.35620659,0.00021918,30]
[366893468,1750554463753,335.35620659,0.00022,30]
[366893541,1750554611875,203.0,0.00019147,2]
[366893548,1750554631651,-150.0,0.00020232,2]
[366893549,1750554631662,-223.32,0.00020471,2]
[366893550,1750554631672,-368.36971218,0.00020751,2]
[366893564,1750554631892,-297.63028782,0.00020751,2]
[366893565,1750554631901,-544.5752966,0.00020772,2]
[366893567,1750554631911,-203.0,0.00020782,4]
[366893569,1750554631921,-1600.0,0.000208,7]
[366893571,1750554631931,-300.0,0.00020899,2]
[366893573,1750554631941,-1200.0,0.00020899,2]
[366893574,1750554631951,-3300.0,0.000209,7]
[366893576,1750554631960,-372.01917012,0.000209,2]
[366893579,1750554631970,-757.57917117,0.000209,2]
[366893648,1750554639722,-806.35239585,0.000209,2]
[366893863,1750554644439,-511.20651277,0.000209,2]
[366893875,1750554645458,-8583.77678666,0.000209,2]
[366893876,1750554645468,-151.49054274,0.000209,2]
[366893877,1750554645477,-224.49259573,0.000209,2]
[366893878,1750554645486,-249.2877972,0.00020947,2]
[366893879,1750554645496,-150.0,0.00020959,2]
[366893880,1750554645505,-150.0,0.00020959,2]
[366893881,1750554645514,-150.0,0.00020959,2]
[366893882,1750554645525,-500.0,0.00020973,2]
[366893883,1750554645535,-300.0,0.00020989,2]
[366893884,1750554645544,-34801.09817996,0.0002099,2]
[366893885,1750554645554,-150.44,0.0002099,2]
[366893886,1750554645563,-612.53274103,0.0002099,2]
[366893887,1750554645572,-300.0,0.00020999,2]
[366893888,1750554645581,-244.52815863,0.00020999,2]
[366893889,1750554645590,-500.0,0.00020999,2]
[366893890,1750554645599,-452.24893992,0.00020999,2]
[366893891,1750554645608,-250.96944193,0.00020999,2]
[366893892,1750554645617,-236.01551646,0.00020999,2]
[366893893,1750554645627,-596.00312657,0.00020999,2]
[366893894,1750554645636,-500.0,0.00020999,2]
[366893895,1750554645645,-500.0,0.00020999,2]
[366893896,1750554645655,-542.322139,0.00020999,2]
[366893897,1750554645664,-53441.84062215,0.00021,2]
[366893898,1750554645740,-150.0,0.00020265,2]
[366893899,1750554645749,-306.0,0.000209,2]
[366893900,1750554671444,206.0,0.00019147,2]
[366893901,1750554701836,202.0,0.00019147,2]
[366893902,1750554732193,201.0,0.00019147,2]
[366893903,1750554823244,250.0,0.00015,2]
[366893905,1750554876348,-528.92053598,0.000209,4]
[366893906,1750554914046,-528.92053582,0.00021107,4]
[366893907,1750554914078,-528.92053582,0.00021314,5]
[366893909,1750554954947,-364.87959238,0.00020992,3]
[366893910,1750554998744,-364.879592,0.00020558,5]
[366893912,1750555076968,-1057.841,0.00020558,5]
[366893918,1750555162906,-150.0,0.00020558,5]
[366893930,1750555279157,155.7,0.00013699,2]
[366893931,1750555313962,250.0,0.00019991,2]
[366893939,1750555406556,790.9821959,0.00019598,2]
[366893940,1750555406620,790.9821959,0.00019838,2]
[366893947,1750555471870,666.0,0.00019901,2]
[366893948,1750555506923,150.0,0.00019701,2]
[366893949,1750555507246,150.0,0.00019701,2]
[366893950,1750555510182,150.0,0.00019701,2]
[366893951,1750555519738,150.00000001,0.00019701,2]
[366894141,1750555659320,9528.39560819,0.00019843,2]
[366894193,1750555832490,-203.0,0.00019416,2]
[366894194,1750555832500,-807.66891909,0.00019789,2]
[366894195,1750555832512,-13.7420341,0.00019789,2]
[366894196,1750555832522,-164.85,0.00019826,2]
[366894197,1750555832531,-427.4079659,0.00019842,2]
[366894198,1750555832542,-644.72303976,0.00019842,2]
[366894199,1750555832553,-127.86899434,0.00019842,2]
[366894200,1750555832563,-1891.24546311,0.00019843,2]
[366894201,1750555832582,-783.919473,0.00019843,2]
[366894202,1750555832594,-424.81935488,0.00019843,2]
[366894203,1750555832605,-1019.11991005,0.00019843,2]
[366894204,1750555832616,-658.40947712,0.00019843,2]
[366894209,1750555832783,-520.28391676,0.00019843,2]
[366894210,1750555832795,-74767.15679689,0.00019843,2]
[366894211,1750555832805,-6285.02543898,0.00019889,2]
[366894212,1750555832815,-150.0,0.00020008,2]
[366894213,1750555832825,-2751.0,0.00020079,2]
[366894214,1750555832834,-300.0,0.00020157,2]
[366894215,1750555832844,-3651.90235022,0.00020158,2]
[366894221,1750555837580,-20248.09764978,0.00020158,2]
[366894222,1750555837590,-174.366,0.00020158,2]
[366894223,1750555837600,-1227.471,0.00020158,2]
[366894224,1750555837610,-760.69631969,0.00020378,2]
[366894225,1750555837619,-150.0,0.00020385,2]
[366894226,1750555837629,-150.0,0.00020431,4]
[366894227,1750555837638,-1463.08695761,0.00020472,2]
[366894228,1750555837647,-150.0,0.000205,2]
[366894229,1750555837657,-150.0,0.000205,2]
[366894230,1750555837666,-680.0,0.00020514,2]
[366894231,1750555837676,-458.989408,0.00020558,5]
[366894232,1750555837686,-166.65,0.00020558,2]
[366894233,1750555837695,-865.0,0.00020571,2]
[366894234,1750555837705,-150.0,0.000206,2]
[366894235,1750555837714,-798.09,0.000206,2]
[366894236,1750555837723,-532.58,0.000206,2]
[366894237,1750555837732,-170.94,0.000206,2]
[366894238,1750555837742,-789.93,0.000206,2]
[366894239,1750555837752,-170.94,0.000206,2]
[366894240,1750555837761,-150.0,0.000206,2]
[366894241,1750555837773,-150.0,0.000206,2]
[366894242,1750555837783,-1248.0,0.00020616,2]
[366894243,1750555837793,-760.69631969,0.00020637,2]
[366894244,1750555837802,-1000.0,0.00020668,2]
[366894245,1750555837812,-150.0,0.00020694,2]
[366894246,1750555837821,-822.0,0.00020697,2]
[366894247,1750555837831,-1571.82,0.000207,2]
[366894248,1750555837839,-931.0,0.00020713,2]
[366894249,1750555837849,-1346.0,0.00020718,2]
[366894250,1750555837859,-269.0,0.0002076,2]
[366894251,1750555837868,-150.0,0.0002078,2]
[366894252,1750555837878,-166.57,0.0002078,2]
[366894253,1750555837888,-150.0,0.00020796,4]
[366894254,1750555837898,-150.0,0.00020796,4]
[366894255,1750555837908,-20308.62027481,0.00020798,2]
[366894256,1750555837918,-1600.0,0.000208,7]
[366894257,1750555837928,-18435.25826871,0.000208,2]
[366894259,1750555837937,-1039.0,0.00020816,2]
[366894261,1750555837947,-611.0,0.0002082,2]
[366894262,1750555837957,-792.21948,0.0002086,2]
[366894263,1750555837966,-728.0,0.00020864,2]
[366894264,1750555837975,-1584.08132048,0.00020866,2]
[366894265,1750555837984,-792.21949,0.0002087,2]
[366894266,1750555837994,-3200.0,0.000209,7]
[366894267,1750555838003,-13626.2999922,0.000209,2]
[366894269,1750555838013,-316.68399363,0.000209,2]
[366894271,1750555838022,-172.65762232,0.000209,2]
[366894273,1750555838032,-792.21949,0.000209,2]
[366894274,1750555838041,-297.61533612,0.000209,2]
[366894276,1750555838051,-162.19579884,0.000209,2]
[366894277,1750555838059,-1864.0,0.00020919,2]
[366894278,1750555838068,-1085.0,0.00020922,2]
[366894279,1750555838077,-792.21949,0.0002093,2]
[366894280,1750555838087,-999.99,0.00020951,2]
[366894281,1750555838096,-275.52,0.00020951,2]
[366894282,1750555838106,-1825.38,0.00020951,2]
[366894283,1750555838115,-9999.99,0.00020951,2]
[366894284,1750555838125,-150.99,0.00020951,2]
[366894285,1750555838135,-1483.0,0.00020951,2]
[366894286,1750555838145,-150.99,0.00020951,2]
[366894287,1750555838155,-6655.82,0.00020951,2]
[366894288,1750555838166,-336.32,0.00020951,2]
[366894289,1750555838176,-3069.49,0.00020951,2]
[366894290,1750555838186,-9725.58,0.00020951,2]
[366894291,1750555838195,-4335.77,0.00020951,2]
[366894292,1750555838205,-151.0,0.00020951,2]
[366894293,1750555838215,-266.20395,0.00020951,2]
[366894294,1750555838224,-151.584366,0.00020951,2]
[366894295,1750555838234,-151.0,0.00020951,2]
[366894296,1750555838243,-792.21949,0.0002096,2]
[366894297,1750555838253,-500.40381384,0.00020973,2]
[366894298,1750555838263,-501.76829695,0.00020973,2]
[366894299,1750555838272,-508.31988387,0.00020973,2]
[366894300,1750555838282,-500.95488366,0.00020973,2]
[366894301,1750555838291,-500.0,0.00020973,2]
[366894302,1750555838301,-500.0,0.00020973,2]
[366894303,1750555838311,-501.09109544,0.00020973,2]
[366894304,1750555838321,-151.0,0.00020973,2]
[366894305,1750555838331,-18435.25826868,0.00020974,2]
[366894306,1750555838340,-185.18628658,0.00020979,2]
[366894307,1750555838350,-350.0,0.00020979,2]
[366894308,1750555838359,-792.21949,0.0002099,2]
[366894309,1750555838368,-151.0,0.0002099,2]
[366894310,1750555838378,-151.25,0.0002099,2]
[366894311,1750555838387,-151.25,0.0002099,2]
[366894312,1750555838397,-151.0,0.0002099,2]
[366894313,1750555838412,-409.44688819,0.0002099,2]
[366894314,1750555838422,-469.38517335,0.00020992,3]
[366894315,1750555838431,-300.0,0.00020999,2]
[366894316,1750555838441,-300.0,0.00020999,2]
[366894317,1750555838450,-300.0,0.00020999,2]
[366894318,1750555838460,-300.0,0.00020999,2]
[366894319,1750555838469,-300.0,0.00020999,2]
[366894320,1750555838480,-300.0,0.00020999,2]
[366894321,1750555838489,-1202.79286074,0.00020999,5]
[366894322,1750555838499,-1202.79286074,0.00020999,5]
[366894323,1750555838508,-1202.79286074,0.00020999,5]
[366894324,1750555838518,-1202.79286073,0.00020999,5]
[366894325,1750555838527,-151.0,0.00020999,2]
[366894326,1750555838537,-151.0,0.00020999,2]
[366894327,1750555838546,-151.0,0.00020999,2]
[366894328,1750555838557,-151.0,0.00020999,2]
[366894329,1750555838566,-151.527907,0.00020999,2]